Workbook

Sheet General

Sheet Conic
A1: Lambert Conformal Conic
B3: State/Zone | C3: WI Central | D3: ="Code "&VLOOKUP(C3,[0]!ConicParam,4) -> Code 4602
B4: Units | C4: Survey Ft
C5: =VLOOKUP($C$4,Units,2,FALSE) -> 3.280833333 | D5: conversion
B7: Direct Conversion | E7: Inverse Conversion | H7: Zone Parameters
B8: Lat (f) | C8: 45.47290658 | D8: d.ms | E8: N | F8: 184406.69 | G8: =$C$4 -> Survey Ft | H8: fs | I8: Std Par S | J8: =VLOOKUP($C$3,[0]!ConicParam,7) -> 47.2 | K8: d.ms
B9: Long (l) | C9: 103.4733422 | D9: d.ms | E9: E | F9: 1706443.56 | G9: =$C$4 -> Survey Ft | H9: fn | I9: Std Par N | J9: =VLOOKUP($C$3,[0]!ConicParam,6) -> 45.5 | K9: d.ms
B10: N | C10: =F28+C21-C41*COS(C42) -> 616745.7112 | D10: =$C$4 -> Survey Ft | E10: Lat (f) | F10: =I51 -> +45°50'19.394464" | H10: lo | I10: Origin Long | J10: =VLOOKUP($C$3,[0]!ConicParam,8) -> 120.3 | K10: d.ms
B11: E | C11: =C22+C41*SIN(C42) -> 5870670.838 | D11: =$C$4 -> Survey Ft | E11: Long (l) | F11: =FormatAngle(DDtoDMS(DEGREES(F43)),6) -> +120°14'27.419636" | H11: fb | I11: Origin Lat | J11: =VLOOKUP($C$3,[0]!ConicParam,9) -> 45.2 | K11: d.ms
B12: Conv (g) | C12: =FormatAngle(DDtoDMS(DEGREES(C42)),3) -> +12°08'10.221" | D12: Conv | E12: Conv (g) | F12: =FormatAngle(DDtoDMS(DEGREES(F40)),3) -> +0°11'17.422" | H12: Nb | I12: Origin N | J12: =VLOOKUP($C$3,[0]!ConicParam,11) -> 0 | K12: meters
B13: Scale (k) | C13: =SQRT((1-F20^2*SIN(C37)^2))*(C41*SIN(F25))/(F17*COS(C37)) -> 1.000009768 | D13: Scale | E13: Scale (k) | F13: =SQRT(1-F20^2*SIN(I47)^2)*(F41*SIN(F25)/(F17*COS(I47))) -> 0.999998783 | H13: Eo | I13: Origin E | J13: =VLOOKUP($C$3,[0]!ConicParam,10) -> 500000 | K13: meters
A15: Parameters
A16: Zone | B16: =CONCATENATE(C3," ",D3) -> WI Central Code 4602 | E16: Ellipsoid
A17: fs | B17: Std Par S | C17: =RADIANS(DMStoDD(J8)) -> 0.8261225126 | D17: radians | E17: a | F17: =Ellipsoids!C6*$C$5 -> 20925604.47 | G17: =$C$4 -> Survey Ft
A18: fn | B18: Std Par N | C18: =RADIANS(DMStoDD(J9)) -> 0.7999425738 | D18: radians | E18: b | F18: =Ellipsoids!C7*$C$5 -> 20855444.88 | G18: =$C$4 -> Survey Ft
A19: lo | B19: Origin Long | C19: =RADIANS(DMStoDD(J10)) -> 2.103121749 | D19: radians | E19: f | F19: =Ellipsoids!C8 -> 0.003352810681
A20: fb | B20: Origin Lat | C20: =RADIANS(DMStoDD(J11)) -> 0.7912159276 | D20: radians | E20: e | F20: =SQRT(Ellipsoids!C9) -> 0.08181919104
A21: Nb | B21: Origin N | C21: =J12*VLOOKUP($C$4,Units,2,FALSE) -> 0 | D21: =$C$4 -> Survey Ft | E21: e' | F21: =SQRT(Ellipsoids!C10) -> 0.08209443815
A22: Eo | B22: Origin E | C22: =J13*VLOOKUP($C$4,Units,2,FALSE) -> 1640416.667 | D22: =$C$4 -> Survey Ft
A24: Zone Constants
C25: Q | D25: W | E25: fo | F25: =ASIN((LN(D27*COS(C17)/(D26*COS(C18))))/(C27-C26)) -> 0.8130631118 | G25: radians
B26: South (Qs) | C26: =Q(F20,C17) -> 0.935260461 | D26: =W(F20,C17) -> 0.9981886029 | F26: =FormatAngle(DDtoDMS(DEGREES(F25)),3) -> +46°35'06.305" | G26: Central Parallel, CP
B27: North (Qn) | C27: =Q(F20,C18) -> 0.8972867644 | D27: =W(F20,C18) -> 0.9982762433 | E27: K | F27: =(F17*COS(C17)*EXP(C26*SIN(F25)))/(D26*SIN(F25)) -> 38583036.23 | G27: =$C$4 -> Survey Ft
B28: Grid Origin (Qb) | C28: =Q(F20,C20) -> 0.8848587357 | E28: Rb | F28: =F27/(EXP(C28*SIN(F25))) -> 20288516.76 | G28: =$C$4 -> Survey Ft
B29: Central (Qo) | C29: =Q(F20,F25) -> 0.9161857716 | D29: =W(F20,F25) -> 0.99823229 | E29: Ro | F29: =F27/(EXP(C29*SIN(F25))) -> 19832048.14 | G29: =$C$4 -> Survey Ft
E30: ko | F30: =(D29*TAN(F25)*F29)/(F17) -> 0.9999145976 | G30: scale at CP
E31: No | F31: =F28+C21-F29 -> 456468.6155 | G31: =$C$4 -> Survey Ft
E32: ro | F32: =(F30*F17*SQRT(1-F20^2))/(1-F20^2*SIN(F25)^2) -> 20927586.19 | G32: =$C$4 -> Survey Ft
B35: Direct Conversion | E35: Inverse Conversion
B36: Lat (f) | C36: =C8 -> 45.47290658 | D36: dec deg | E36: N | F36: =F8 -> 184406.69 | G36: =$C$4 -> Survey Ft
C37: =RADIANS(DMStoDD(C36)) -> 0.7992108241 | D37: radians | E37: E | F37: =F9 -> 1706443.56 | G37: =$C$4 -> Survey Ft
B38: Long (l) | C38: =C9 -> 103.4733422 | D38: dec deg | E38: R' | F38: =F28-F36+C21 -> 20104110.07 | G38: =$C$4 -> Survey Ft
C39: =RADIANS(DMStoDD(C38)) -> 1.81152291 | D39: radians | E39: E' | F39: =F37-C22 -> 66026.89333 | G39: =$C$4 -> Survey Ft
B40: Q | C40: =Q(F20,C37) -> 0.8962403499 | E40: Conv | F40: =ATAN(F39/F38) -> 0.003284236692 | G40: radians
B41: R | C41: =F27/(EXP(C40*SIN(F25))) -> 20121471.78 | E41: R | F41: =SQRT(F38^2+F39^2) -> 20104218.49
B42: Conv | C42: =(C19-C39)*SIN(F25) -> 0.2118161671 | D42: radians | E42: Q | F42: =(LN(F27/F41))/(SIN(F25)) -> 0.8974212821
E43: Long | F43: =C19-(F40/SIN(F25)) -> 2.098600471 | G43: radians
E44: Latitude | F44: - iterative solution
E45: iteration>> | F45: 0 | G45: 1 | H45: 2 | I45: 3
E46: sin(Lat) | F46: =(EXP(2*F42)-1)/(EXP(2*F42)+1) -> 0.7150399269 | G46: =F46+F50 -> 0.7173896854 | H46: =G46+G50 -> 0.7173815906 | I46: =H46+H50 -> 0.7173815905
E47: Lat; radians | F47: =ASIN(F46) -> 0.7966812181 | G47: =ASIN(G46) -> 0.8000482201 | H47: =ASIN(H46) -> 0.800036601 | I47: =ASIN(I46) -> 0.8000366008
E48: f1 | F48: =Q($F$20,F47)-$F$42 -> -0.004792221474 | G48: =Q($F$20,G47)-$F$42 -> 1.66237986e-05 | H48: =Q($F$20,H47)-$F$42 -> 1.99544159e-10
E49: f2 | F49: =1/(1-F46^2)-$F$20^2/(1-$F$20^2*F46^2) -> 2.03945281 | G49: =1/(1-G46^2)-$F$20^2/(1-$F$20^2*G46^2) -> 2.053642625 | H49: =1/(1-H46^2)-$F$20^2/(1-$F$20^2*H46^2) -> 2.053593324
E50: (-f1/f2) | F50: =-F48/F49 -> 0.002349758451 | G50: =-G48/G49 -> -8.094786498e-06 | H50: =-H48/H49 -> -9.716829358e-11
H51: Lat; D M S | I51: =FormatAngle(DDtoDMS(DEGREES(I47)),6) -> +45°50'19.394464"

Sheet Cylindric
A1: Transverse Mercator Conformal Cylindric
B3: State/Zone | C3: UTM 12 | D3: ="Code "&VLOOKUP($C$3,[0]!CylindricParam,4) -> Code 12N
B4: Units | C4: Meters
C5: =VLOOKUP($C$4,Units,2,FALSE) -> 1 | D5: conversion
B7: Direct Conversion | E7: Inverse Conversion | I7: Zone Parameters
B8: Lat (f) | C8: 41 | D8: d.ms | E8: N | F8: 63690.932 | G8: =$C$4 -> Meters | I8: lo | J8: Cen Mer | K8: =VLOOKUP($C$3,[0]!CylindricParam,6) -> 111 | L8: d.ms
B9: Long (l) | C9: 90.002 | D9: d.ms | E9: E | F9: 916159.33 | G9: =$C$4 -> Meters | J9: Scale- 1: | K9: =VLOOKUP($C$3,[0]!CylindricParam,7) -> 2500
B10: N | C10: =C45-C36+C21+C50*C43^2*(1+C43^2*(C52+C54*C43^2)) -> 4756834.027 | D10: =$C$4 -> Meters | E10: Lat (f) | F10: =FormatAngle(DDtoDMS(DEGREES(F54)),6) -> +0°34'29.992644" | I10: lo | J10: Origin Long | K10: =VLOOKUP($C$3,[0]!CylindricParam,8) -> 111 | L10: d.ms
B11: E | C11: =C22+C49*C43*(1+C43^2*(C51+C43^2*(C53+C55*C43^2))) -> 2270518.058 | D11: =$C$4 -> Meters | E11: Long (l) | F11: =FormatAngle(DDtoDMS(DEGREES(F55)),6) -> +107°15'45.233164" | I11: fo | J11: Origin Lat | K11: =VLOOKUP($C$3,[0]!CylindricParam,9) -> 0 | L11: d.ms
B12: Conv (g) | C12: =FormatAngle(DDtoDMS(DEGREES(C61)),3) -> +14°08'07.606" | E12: Conv (g) | F12: =FormatAngle(DDtoDMS(DEGREES(F61)),3) -> +0°02'15.220" | I12: No | J12: Origin N | K12: =VLOOKUP($C$3,[0]!CylindricParam,11) -> 0 | L12: meters
B13: Scale (k) | C13: =C18*(1+C59*C43^2*(1+C60*C43^2)) -> 1.038444202 | E13: Scale (k) | F13: =C18*(1+F59*F46^2*(1+F60*F46^2)) -> 1.001744624 | I13: Eo | J13: Origin E | K13: =VLOOKUP($C$3,[0]!CylindricParam,10) -> 500000 | L13: meters
A15: Parameters
A16: Zone | E16: Ellipsoid
A17: lo | B17: Cen Mer | C17: =RADIANS(DMStoDD(K8)) -> 1.93731547 | D17: radians | E17: a | F17: =Ellipsoids!C6*$C$5 -> 6378137 | G17: =$C$4 -> Meters
A18: ko | B18: Scale- 1: | C18: =1-1/K9 -> 0.9996 | E18: b | F18: =Ellipsoids!C7*$C$5 -> 6356752.314 | G18: =$C$4 -> Meters
A19: lo | B19: Origin Long | C19: =RADIANS(DMStoDD(K10)) -> 1.93731547 | D19: radians | E19: f | F19: =Ellipsoids!C8 -> 0.003352810681
A20: fo | B20: Origin Lat | C20: =RADIANS(DMStoDD(K11)) -> 0 | D20: radians | E20: e | F20: =SQRT(Ellipsoids!C9) -> 0.08181919104
A21: No | B21: Origin N | C21: =K12*C5 -> 0 | D21: =$C$4 -> Meters | E21: e' | F21: =SQRT(Ellipsoids!C10) -> 0.08209443815
A22: Eo | B22: Origin E | C22: =K13*C5 -> 500000 | D22: =$C$4 -> Meters
A24: Zone Constants
B25: n | C25: =(F17-F18)/(F17+F18) -> 0.001679220395
B26: r | C26: =F17*(1-C25)*(1-C25^2)*(1+9*C25^2/4+225*C25^4/64) -> 6367449.146 | D26: =$C$4 -> Meters
B27: u2 | C27: =-3*C25/2+9*C25^3/16 -> -0.002518827928 | E27: v2 | F27: =3*C25/2-27*C25^3/32 -> 0.002518826597
B28: u4 | C28: =15*C25^2/16-15*C25^4/32 -> 2.643541086e-06 | E28: v4 | F28: =21*C25^2/16-55*C25^4/32 -> 3.700949072e-06
B29: u6 | C29: =-35*C25^3/48 -> -3.45262895e-09 | E29: v6 | F29: =151*C25^3/96 -> 7.447813877e-09
B30: u8 | C30: =315*C25^4/512 -> 4.891830424e-12 | E30: v8 | F30: =1097*C25^4/512 -> 1.703599357e-11
B31: U0 | C31: =2*(C27-2*C28+3*C29-4*C30) -> -0.005048250776 | E31: V0 | F31: =2*(F27-2*F28+3*F29-4*F30) -> 0.005022893948
B32: U2 | C32: =8*(C28-4*C29+10*C30) -> 2.125920416e-05 | E32: V2 | F32: =8*(F28-4*F29+10*F30) -> 2.937062541e-05
B33: U4 | C33: =32*(C29-6*C30) -> -1.114233578e-07 | E33: V4 | F33: =32*(F29-6*F30) -> 2.350591333e-07
B34: U6 | C34: =128*C30 -> 6.261542943e-10 | E34: V6 | F34: =128*F30 -> 2.180607177e-09
B35: wo | C35: =C20+SIN(C20)*COS(C20)*(C31+C32*COS(C20)^2+C33*COS(C20)^4+C34*COS(C20)^6) -> 0
B36: So | C36: =C18*C35*C26 -> 0 | D36: =$C$4 -> Meters | E36: ro | F36: =C18*F17*SQRT(1-F20^2)/(1-F20^2*SIN(C20)^2) -> 6354209.613 | G36: =$C$4 -> Meters
B38: Direct Conversion | E38: Inverse Conversion
B39: Lat (f) | C39: =DMStoDD(C8) -> 41 | D39: dec deg | E39: N | F39: =F8 -> 63690.932 | G39: =$C$4 -> Meters
C40: =RADIANS(C39) -> 0.7155849933 | D40: radians | E40: E | F40: =F9 -> 916159.33 | G40: =$C$4 -> Meters
B41: Long (l) | C41: =DMStoDD(C9) -> 90.00555556 | D41: dec deg | E41: w | F41: =(F39-C21+C36)/(C18*C26) -> 0.0100065846
C42: =RADIANS(C41) -> 1.57089329 | D42: radians | E42: ff | F42: =F41+(SIN(F41)*COS(F41))*(F31+F32*COS(F41)^2+F33*COS(F41)^4+F34*COS(F41)^6) -> 0.01005713948
B43: L | C43: =(C42-C17)*COS(C40) -> -0.2765423298 | E43: tf | F43: =TAN(F42) -> 0.01005747858
B44: w | C44: =C40+SIN(C40)*COS(C40)*(C31+C32*COS(C40)^2+C33*COS(C40)^4+C34*COS(C40)^6) -> 0.7130914103 | E44: hf2 | F44: =F21^2*COS(F42)^2 -> 0.006738815125
B45: S | C45: =C18*C44*C26 -> 4538757.062 | D45: =$C$4 -> Meters | E45: Rf | F45: =(C18*F17)/SQRT(1-F20^2*SIN(F42)^2) -> 6375587.904 | G45: =$C$4 -> Meters
B46: t | C46: =TAN(C40) -> 0.8692867378 | E46: Q | F46: =(F40-C22)/F45 -> 0.06527387533
B47: h2 | C47: =F21^2*COS(C40)^2 -> 0.00383872672 | E47: B2 | F47: =-F43/2*(1+F44) -> -0.005062627033
B48: R | C48: =(C18*F17)/SQRT(1-F20^2*SIN(C40)^2) -> 6384790.793 | D48: =$C$4 -> Meters | E48: B3 | F48: =-(1+2*F43^2+F44)/6 -> -0.1678235201
B49: A1 | C49: =-C48 -> -6384790.793 | E49: B4 | F49: =-(5+3*F43^2+F44*(1-9*F43^2)-4*F44^2)/12 -> -0.4172378744
B50: A2 | C50: =C48*C46/2 -> 2775106.98 | E50: B5 | F50: =(5+28*F43^2+24*F43^4+F44*(6+8*F43^2))/120 -> 0.04202725725
B51: A3 | C51: =(1-C46^2+C47)/6 -> 0.0413632157 | E51: B6 | F51: =(61+90*F43^2+45*F43^4+F44*(46-252*F43^2-90*F43^4))/360 -> 0.1703303276
B52: A4 | C52: =(5-C46^2+C47*(9+4*C47))/12 -> 0.3565790043 | E52: B7 | F52: =-(61+662*F43^2+1320*F43^4+720*F43^6)/5040 -> -0.01211646363
B53: A5 | C53: =(5-18*C46^2+C46^4+C47*(14-58*C46^2))/120 -> -0.06787792581 | E53: L | F53: =F46*(1+F46^2*(F48+F46^2*(F50+F52*F46^2))) -> 0.0652272515
B54: A6 | C54: =(61-58*C46^2+C46^4+C47*(270-330*C46^2))/360 -> 0.04950548941 | E54: Lat (f) | F54: =F42+F47*F46^2*(1+F46^2*(F49+F51*F46^2)) -> 0.01003560753 | G54: radians
B55: A7 | C55: =(61-479*C46^2+179*C46^4-C46^6)/5040 -> -0.03951975692 | E55: Long (l) | F55: =C19-(F53/COS(F42)) -> 1.872084919 | G55: radians
B56: C1 | C56: =-C46 -> -0.8692867378 | E56: D1 | F56: =F43 -> 0.01005747858
B57: C3 | C57: =(1+3*C47+2*C47^2)/3 -> 0.3371818839 | E57: D3 | F57: =-(1+F43^2-F44-2*F44^2)/3 -> -0.3310905048
B58: C5 | C58: =(2-C46^2)/15 -> 0.08295603783 | E58: D5 | F58: =(2+5*F43^2+3*F43^4)/15 -> 0.133367053
B59: F2 | C59: =(1+C47)/2 -> 0.5019193634 | E59: G2 | F59: =(1+F44)/2 -> 0.5033694076
B60: F4 | C60: =(5-4*C46^2+C47*(9-24*C46^2))/12 -> 0.1618576941 | E60: G4 | F60: =(1+5*F44)/12 -> 0.08614117297
B61: Conv (g) | C61: =C56*C43*(1+C43^2*(C57+C58*C43^2)) -> 0.2467100765 | D61: radians | E61: Conv (g) | F61: =F56*F46*(1+F46^2*(F57+F58*F46^2)) -> 0.0006555661004 | G61: radians

Sheet Parameters
B1: Lambert Conic | O1: Oblique Mercator Cylindric
C2: NSP, SSP | D2: North & South Std Parallel | P2: k | Q2: Scale at CM | S2: AzAxis | T2: Axis Azimuth
C3: LgO, Ltb | D3: Grid origin Long & Lat | P3: LgO, LtO | Q3: Grid origin Long & Lat
C4: Nb, EO | D4: False Northing and Easting | P4: NO, EO | Q4: Grid origin N & E
B6: State | C6: Name | D6: Code | F6: NSP; °.' | G6: SSP; °.' | H6: LgO; °.' | I6: Ltb; °.' | J6: EO; m | K6: Nb; m | O6: State | P6: Name | Q6: Code | R6: T | S6: AzAxis | T6: 1/k | U6: LgO; °.' | V6: LtO; °.' | W6: EO; m | X6: NO; m
A7: =CONCATENATE(B7," ",C7) -> AK 10 | B7: AK | C7: 10 | D7: 5010 | E7: L | F7: 51.5 | G7: 53.5 | H7: 176 | I7: 51 | J7: 1000000 | K7: 0 | O7: AK | P7: 1 | Q7: 5001 | R7: O | S7: tan-1(-3/4) | T7: 10000 | U7: 133.4 | V7: 57 | W7: 5000000 | X7: -5000000
A8: =CONCATENATE(B8," ",C8) -> AR North | B8: AR | C8: North | D8: 0301 | E8: L | F8: 34.56 | G8: 36.14 | H8: 92 | I8: 34.2 | J8: 400000 | K8: 0
A9: AR South | B9: AR | C9: South | D9: 0302 | E9: L | F9: 33.18 | G9: 34.46 | H9: 92 | I9: 32.4 | J9: 400000 | K9: 400000 | O9: Transverse Mercator Cylindric
A10: CA 1 | B10: CA | C10: 1 | D10: 0401 | E10: L | F10: 40 | G10: 41.4 | H10: 122 | I10: 39.2 | J10: 2000000 | K10: 500000 | P10: k | Q10: Scale at CM | S10: LgCM | T10: Long CM
A11: CA 2 | B11: CA | C11: 2 | D11: 0402 | E11: L | F11: 38.2 | G11: 39.5 | H11: 122 | I11: 37.4 | J11: 2000000 | K11: 500000 | P11: LgO, LtO | Q11: Grid origin Long & Lat
A12: CA 3 | B12: CA | C12: 3 | D12: 0403 | E12: L | F12: 37.04 | G12: 38.26 | H12: 120.3 | I12: 36.3 | J12: 2000000 | K12: 500000 | P12: NO, EO | Q12: Grid origin N & E
A13: CA 4 | B13: CA | C13: 4 | D13: 0404 | E13: L | F13: 36 | G13: 37.15 | H13: 119 | I13: 35.2 | J13: 2000000 | K13: 500000
A14: CA 5 | B14: CA | C14: 5 | D14: 0405 | E14: L | F14: 34.02 | G14: 35.28 | H14: 118 | I14: 33.3 | J14: 2000000 | K14: 500000 | O14: State | P14: Name | Q14: Code | R14: T | S14: LgCM; °.' | T14: 1/k | U14: LgO; °.' | V14: LtO; °.' | W14: EO; m | X14: NO; m
A15: CA 6 | B15: CA | C15: 6 | D15: 0406 | E15: L | F15: 32.47 | G15: 33.53 | H15: 116.15 | I15: 32.1 | J15: 2000000 | K15: 500000 | N15: =CONCATENATE(O15," ",P15) -> AL East | O15: AL | P15: East | Q15: 0101 | R15: T | S15: 85.5 | T15: 25000 | U15: 85.5 | V15: 30.3 | W15: 200000 | X15: 0
A16: CO North | B16: CO | C16: North | D16: 0501 | E16: L | F16: 39.43 | G16: 40.47 | H16: 105.3 | I16: 39.2 | J16: 914401.8289 | K16: 304800.6096 | N16: =CONCATENATE(O16," ",P16) -> AL West | O16: AL | P16: West | Q16: 0102 | R16: T | S16: 87.3 | T16: 15000 | U16: 87.3 | V16: 30 | W16: 600000 | X16: 0
A17: CO Central | B17: CO | C17: Central | D17: 0502 | E17: L | F17: 38.27 | G17: 39.45 | H17: 105.3 | I17: 37.5 | J17: 914401.8289 | K17: 304800.6096 | N17: AZ East | O17: AZ | P17: East | Q17: 0201 | R17: T | S17: 110.1 | T17: 10000 | U17: 110.1 | V17: 31 | W17: 213360 | X17: 0
A18: CO South | B18: CO | C18: South | D18: 0503 | E18: L | F18: 37.14 | G18: 38.26 | H18: 105.3 | I18: 36.4 | J18: 914401.8289 | K18: 304800.6096 | N18: AZ Central | O18: AZ | P18: Central | Q18: 0202 | R18: T | S18: 111.55 | T18: 10000 | U18: 111.55 | V18: 31 | W18: 213360 | X18: 0
A19: CT - | B19: CT | C19: - | D19: 0600 | E19: L | F19: 41.12 | G19: 41.52 | H19: 72.45 | I19: 40.5 | J19: 304800.6096 | K19: 152400.3048 | N19: AZ West | O19: AZ | P19: West | Q19: 0203 | R19: T | S19: 113.45 | T19: 15000 | U19: 113.45 | V19: 31 | W19: 213360 | X19: 0
A20: FL North | B20: FL | C20: North | D20: 0903 | E20: L | F20: 29.35 | G20: 30.45 | H20: 84.3 | I20: 29 | J20: 600000 | K20: 0 | N20: DE - | O20: DE | P20: - | Q20: 0700 | R20: T | S20: 75.25 | T20: 200000 | U20: 75.25 | V20: 38 | W20: 200000 | X20: 0
A21: IA North | B21: IA | C21: North | D21: 1401 | E21: L | F21: 42.04 | G21: 43.16 | H21: 93.3 | I21: 41.3 | J21: 1500000 | K21: 1000000 | N21: FL East | O21: FL | P21: East | Q21: 0901 | R21: T | S21: 81 | T21: 17000 | U21: 81 | V21: 24.2 | W21: 200000 | X21: 0
A22: IA South | B22: IA | C22: South | D22: 1402 | E22: L | F22: 40.37 | G22: 41.47 | H22: 93.3 | I22: 40 | J22: 500000 | K22: 0 | N22: FL West | O22: FL | P22: West | Q22: 0902 | R22: T | S22: 82 | T22: 17000 | U22: 82 | V22: 24.2 | W22: 200000 | X22: 0
A23: KS North | B23: KS | C23: North | D23: 1501 | E23: L | F23: 38.43 | G23: 39.47 | H23: 98 | I23: 38.2 | J23: 400000 | K23: 0 | N23: GA East | O23: GA | P23: East | Q23: 1001 | R23: T | S23: 82.1 | T23: 10000 | U23: 82.1 | V23: 30 | W23: 200000 | X23: 0
A24: KS South | B24: KS | C24: South | D24: 1502 | E24: L | F24: 37.16 | G24: 38.34 | H24: 98.3 | I24: 36.4 | J24: 400000 | K24: 400000 | N24: GA West | O24: GA | P24: West | Q24: 1002 | R24: T | S24: 84.1 | T24: 10000 | U24: 84.1 | V24: 30 | W24: 700000 | X24: 0
A25: KY North | B25: KY | C25: North | D25: 1601 | E25: L | F25: 37.58 | G25: 38.58 | H25: 84.15 | I25: 37.3 | J25: 500000 | K25: 0 | N25: ID East | O25: ID | P25: East | Q25: 1101 | R25: T | S25: 112.1 | T25: 19000 | U25: 112.1 | V25: 41.4 | W25: 200000 | X25: 0
A26: KY South | B26: KY | C26: South | D26: 1602 | E26: L | F26: 36.44 | G26: 37.56 | H26: 85.45 | I26: 36.2 | J26: 500000 | K26: 500000 | N26: ID Central | O26: ID | P26: Central | Q26: 1102 | R26: T | S26: 114 | T26: 19000 | U26: 114 | V26: 41.4 | W26: 500000 | X26: 0
A27: LA North | B27: LA | C27: North | D27: 1701 | E27: L | F27: 31.1 | G27: 32.4 | H27: 92.3 | I27: 30.3 | J27: 1000000 | K27: 0 | N27: ID West | O27: ID | P27: West | Q27: 1103 | R27: T | S27: 115.45 | T27: 15000 | U27: 115.45 | V27: 41.4 | W27: 800000 | X27: 0
A28: LA Central | B28: LA | C28: Central | D28: 1702 | E28: L | F28: 29.18 | G28: 30.42 | H28: 91.2 | I28: 28.3 | J28: 1000000 | K28: 0 | N28: IL East | O28: IL | P28: East | Q28: 1201 | R28: T | S28: 88.2 | T28: 40000 | U28: 88.2 | V28: 36.4 | W28: 300000 | X28: 0
A29: LA South | B29: LA | C29: South | D29: 1703 | E29: L | F29: 26.1 | G29: 27.5 | H29: 91.2 | I29: 25.3 | J29: 1000000 | K29: 0 | N29: IL West | O29: IL | P29: West | Q29: 1202 | R29: T | S29: 90.1 | T29: 17000 | U29: 90.1 | V29: 36.4 | W29: 700000 | X29: 0
A30: MD - | B30: MD | C30: - | D30: 1900 | E30: L | F30: 38.18 | G30: 39.27 | H30: 77 | I30: 37.4 | J30: 400000 | K30: 0 | N30: IN East | O30: IN | P30: East | Q30: 1301 | R30: T | S30: 85.4 | T30: 30000 | U30: 85.4 | V30: 37.3 | W30: 100000 | X30: 250000
A31: MA North | B31: MA | C31: North | D31: 2001 | E31: L | F31: 41.43 | G31: 42.41 | H31: 71.3 | I31: 41 | J31: 200000 | K31: 750000 | N31: IN West | O31: IN | P31: West | Q31: 1302 | R31: T | S31: 87.05 | T31: 30000 | U31: 87.05 | V31: 37.3 | W31: 900000 | X31: 250000
A32: MA South | B32: MA | C32: South | D32: 2002 | E32: L | F32: 41.17 | G32: 41.29 | H32: 70.3 | I32: 41 | J32: 500000 | K32: 0 | N32: ME East | O32: ME | P32: East | Q32: 1801 | R32: T | S32: 68.3 | T32: 10000 | U32: 68.3 | V32: 43.4 | W32: 300000 | X32: 0
A33: MI North | B33: MI | C33: North | D33: 2111 | E33: L | F33: 45.29 | G33: 47.05 | H33: 87 | I33: 44.47 | J33: 8000000 | K33: 0 | N33: ME West | O33: ME | P33: West | Q33: 1802 | R33: T | S33: 70.1 | T33: 30000 | U33: 70.1 | V33: 42.5 | W33: 900000 | X33: 0
A34: MI Central | B34: MI | C34: Central | D34: 2112 | E34: L | F34: 44.11 | G34: 45.42 | H34: 84.22 | I34: 43.19 | J34: 6000000 | K34: 0 | N34: =CONCATENATE(O34," ",P34) -> MS East | O34: MS | P34: East | Q34: 2301 | R34: T | S34: 88.5 | T34: 20000 | U34: 88.5 | V34: 29.3 | W34: 300000 | X34: 0
A35: MI South | B35: MI | C35: South | D35: 2113 | E35: L | F35: 42.06 | G35: 43.4 | H35: 84.22 | I35: 41.3 | J35: 4000000 | K35: 0 | N35: MS West | O35: MS | P35: West | Q35: 2302 | R35: T | S35: 90.2 | T35: 20000 | U35: 90.2 | V35: 29.3 | W35: 700000 | X35: 0
A36: MN North | B36: MN | C36: North | D36: 2201 | E36: L | F36: 47.02 | G36: 48.38 | H36: 93.06 | I36: 46.3 | J36: 800000 | K36: 100000 | N36: MO East | O36: MO | P36: East | Q36: 2401 | R36: T | S36: 90.3 | T36: 15000 | U36: 90.3 | V36: 35.5 | W36: 250000 | X36: 0
A37: MN Central | B37: MN | C37: Central | D37: 2202 | E37: L | F37: 45.37 | G37: 47.03 | H37: 94.15 | I37: 45 | J37: 800000 | K37: 100000 | N37: MO Central | O37: MO | P37: Central | Q37: 2402 | R37: T | S37: 92.3 | T37: 15000 | U37: 92.3 | V37: 35.5 | W37: 500000 | X37: 0
A38: MN South | B38: MN | C38: South | D38: 2203 | E38: L | F38: 43.47 | G38: 45.13 | H38: 94 | I38: 43 | J38: 800000 | K38: 100000 | N38: MO West | O38: MO | P38: West | Q38: 2403 | R38: T | S38: 94.3 | T38: 17000 | U38: 94.3 | V38: 36.1 | W38: 850000 | X38: 0
A39: MT - | B39: MT | C39: - | D39: 2500 | E39: L | F39: 45 | G39: 49 | H39: 109.3 | I39: 44.15 | J39: 600000 | K39: 0 | N39: NV East | O39: NV | P39: East | Q39: 2701 | R39: T | S39: 115.35 | T39: 10000 | U39: 115.35 | V39: 34.45 | W39: 200000 | X39: 8000000
A40: NC - | B40: NC | C40: - | D40: 3200 | E40: L | F40: 34.2 | G40: 36.1 | H40: 79 | I40: 33.45 | J40: 609601.22 | K40: 0 | N40: NV Central | O40: NV | P40: Central | Q40: 2702 | R40: T | S40: 116.4 | T40: 10000 | U40: 116.4 | V40: 34.45 | W40: 500000 | X40: 6000000
A41: ND North | B41: ND | C41: North | D41: 3301 | E41: L | F41: 47.26 | G41: 48.44 | H41: 100.3 | I41: 47 | J41: 600000 | K41: 0 | N41: NV West | O41: NV | P41: West | Q41: 2703 | R41: T | S41: 118.35 | T41: 10000 | U41: 118.35 | V41: 34.45 | W41: 800000 | X41: 4000000
A42: ND South | B42: ND | C42: South | D42: 3302 | E42: L | F42: 46.11 | G42: 47.29 | H42: 100.3 | I42: 45.4 | J42: 600000 | K42: 0 | N42: NH - | O42: NH | P42: - | Q42: 2800 | R42: T | S42: 71.4 | T42: 30000 | U42: 71.4 | V42: 42.3 | W42: 300000 | X42: 0
A43: NE - | B43: NE | C43: - | D43: 2600 | E43: L | F43: 40 | G43: 43 | H43: 100 | I43: 39.5 | J43: 500000 | K43: 0 | N43: NJ NY East | O43: NJ | P43: NY East | Q43: 2900 | R43: T | S43: 74.3 | T43: 10000 | U43: 74.3 | V43: 38.5 | W43: 150000 | X43: 0
A44: NY NY East | B44: NY | C44: NY East | D44: 3104 | E44: L | F44: 40.4 | G44: 41.02 | H44: 74 | I44: 40.1 | J44: 300000 | K44: 0 | N44: NM East | O44: NM | P44: East | Q44: 3001 | R44: T | S44: 104.2 | T44: 11000 | U44: 104.2 | V44: 31 | W44: 165000 | X44: 0
A45: OH North | B45: OH | C45: North | D45: 3401 | E45: L | F45: 40.26 | G45: 41.42 | H45: 82.3 | I45: 39.4 | J45: 600000 | K45: 0 | N45: NM Central | O45: NM | P45: Central | Q45: 3002 | R45: T | S45: 106.15 | T45: 10000 | U45: 106.15 | V45: 31 | W45: 500000 | X45: 0
A46: OH South | B46: OH | C46: South | D46: 3402 | E46: L | F46: 38.44 | G46: 40.02 | H46: 82.3 | I46: 38 | J46: 600000 | K46: 0 | N46: NM West | O46: NM | P46: West | Q46: 3003 | R46: T | S46: 107.5 | T46: 12000 | U46: 107.5 | V46: 31 | W46: 830000 | X46: 0
A47: OK North | B47: OK | C47: North | D47: 3501 | E47: L | F47: 35.34 | G47: 36.46 | H47: 98 | I47: 35 | J47: 600000 | K47: 0 | N47: NY East | O47: NY | P47: East | Q47: 3101 | R47: T | S47: 74.3 | T47: 10000 | U47: 74.3 | V47: 38.5 | W47: 150000 | X47: 0
A48: OK South | B48: OK | C48: South | D48: 3502 | E48: L | F48: 33.56 | G48: 35.14 | H48: 98 | I48: 33.2 | J48: 600000 | K48: 0 | N48: NY Central | O48: NY | P48: Central | Q48: 3102 | R48: T | S48: 76.35 | T48: 16000 | U48: 76.35 | V48: 40 | W48: 250000 | X48: 0
A49: OR North | B49: OR | C49: North | D49: 3601 | E49: L | F49: 44.2 | G49: 46 | H49: 120.3 | I49: 43.4 | J49: 2500000 | K49: 0 | N49: NY West | O49: NY | P49: West | Q49: 3103 | R49: T | S49: 78.35 | T49: 16000 | U49: 78.35 | V49: 40 | W49: 350000 | X49: 0
A50: OR South | B50: OR | C50: South | D50: 3602 | E50: L | F50: 42.2 | G50: 44 | H50: 120.3 | I50: 41.4 | J50: 1500000 | K50: 0 | N50: RI - | O50: RI | P50: - | Q50: 3800 | R50: T | S50: 71.3 | T50: 160000 | U50: 71.3 | V50: 41.05 | W50: 100000 | X50: 0
A51: PA North | B51: PA | C51: North | D51: 3701 | E51: L | F51: 40.53 | G51: 41.57 | H51: 77.45 | I51: 40.1 | J51: 600000 | K51: 0 | N51: VT - | O51: VT | P51: - | Q51: 4400 | R51: T | S51: 72.3 | T51: 28000 | U51: 72.3 | V51: 42.3 | W51: 500000 | X51: 0
A52: PA South | B52: PA | C52: South | D52: 3702 | E52: L | F52: 39.56 | G52: 40.58 | H52: 77.45 | I52: 39.2 | J52: 600000 | K52: 0 | N52: WY East | O52: WY | P52: East | Q52: 4901 | R52: T | S52: 105.1 | T52: 16000 | U52: 105.1 | V52: 40.3 | W52: 200000 | X52: 0
A53: SC - | B53: SC | C53: - | D53: 3900 | E53: L | F53: 32.3 | G53: 34.5 | H53: 81 | I53: 31.5 | J53: 609600 | K53: 0 | N53: WY East Central | O53: WY | P53: East Central | Q53: 4902 | R53: T | S53: 107.2 | T53: 16000 | U53: 107.2 | V53: 40.3 | W53: 400000 | X53: 100000
A54: SD North | B54: SD | C54: North | D54: 4001 | E54: L | F54: 44.25 | G54: 45.41 | H54: 100 | I54: 43.5 | J54: 600000 | K54: 0 | N54: WY West Central | O54: WY | P54: West Central | Q54: 4903 | R54: T | S54: 108.45 | T54: 16000 | U54: 108.45 | V54: 40.3 | W54: 600000 | X54: 0
A55: SD South | B55: SD | C55: South | D55: 4002 | E55: L | F55: 42.5 | G55: 44.24 | H55: 100.2 | I55: 42.2 | J55: 600000 | K55: 0 | N55: WY West | O55: WY | P55: West | Q55: 4904 | R55: T | S55: 110.05 | T55: 16000 | U55: 110.05 | V55: 40.3 | W55: 800000 | X55: 100000
A56: TN - | B56: TN | C56: - | D56: 4100 | E56: L | F56: 35.15 | G56: 36.25 | H56: 86 | I56: 34.2 | J56: 600000 | K56: 0 | N56: AK 2 | O56: AK | P56: 2 | Q56: 5002 | R56: T | S56: 142 | T56: 10000 | U56: 142 | V56: 54 | W56: 500000 | X56: 0
A57: TX North | B57: TX | C57: North | D57: 4201 | E57: L | F57: 34.39 | G57: 36.11 | H57: 101.3 | I57: 34 | J57: 200000 | K57: 1000000 | N57: AK 3 | O57: AK | P57: 3 | Q57: 5003 | R57: T | S57: 146 | T57: 10000 | U57: 146 | V57: 54 | W57: 500000 | X57: 0
A58: TX North Central | B58: TX | C58: North Central | D58: 4202 | E58: L | F58: 32.08 | G58: 33.58 | H58: 98.3 | I58: 31.4 | J58: 600000 | K58: 2000000 | N58: AK 4 | O58: AK | P58: 4 | Q58: 5004 | R58: T | S58: 150 | T58: 10000 | U58: 150 | V58: 54 | W58: 500000 | X58: 0
A59: TX Central | B59: TX | C59: Central | D59: 4203 | E59: L | F59: 30.07 | G59: 31.53 | H59: 100.2 | I59: 29.4 | J59: 700000 | K59: 3000000 | N59: AK 5 | O59: AK | P59: 5 | Q59: 5005 | R59: T | S59: 154 | T59: 10000 | U59: 154 | V59: 54 | W59: 500000 | X59: 0
A60: TX South Central | B60: TX | C60: South Central | D60: 4204 | E60: L | F60: 28.23 | G60: 30.17 | H60: 99 | I60: 27.5 | J60: 600000 | K60: 4000000 | N60: AK 6 | O60: AK | P60: 6 | Q60: 5006 | R60: T | S60: 158 | T60: 10000 | U60: 158 | V60: 54 | W60: 500000 | X60: 0
A61: TX South | B61: TX | C61: South | D61: 4205 | E61: L | F61: 26.1 | G61: 27.5 | H61: 98.3 | I61: 25.4 | J61: 300000 | K61: 5000000 | N61: AK 7 | O61: AK | P61: 7 | Q61: 5007 | R61: T | S61: 162 | T61: 10000 | U61: 162 | V61: 54 | W61: 500000 | X61: 0
A62: UT North | B62: UT | C62: North | D62: 4301 | E62: L | F62: 40.43 | G62: 41.47 | H62: 111.3 | I62: 40.2 | J62: 500000 | K62: 1000000 | N62: AK 8 | O62: AK | P62: 8 | Q62: 5008 | R62: T | S62: 166 | T62: 10000 | U62: 166 | V62: 54 | W62: 500000 | X62: 0
A63: UT Central | B63: UT | C63: Central | D63: 4302 | E63: L | F63: 39.01 | G63: 40.39 | H63: 111.3 | I63: 38.2 | J63: 500000 | K63: 2000000 | N63: AK 9 | O63: AK | P63: 9 | Q63: 5009 | R63: T | S63: 170 | T63: 10000 | U63: 170 | V63: 54 | W63: 500000 | X63: 0
A64: UT South | B64: UT | C64: South | D64: 4303 | E64: L | F64: 37.13 | G64: 38.21 | H64: 111.3 | I64: 36.4 | J64: 500000 | K64: 3000000 | N64: HI 1 | O64: HI | P64: 1 | Q64: 5101 | R64: T | S64: 155.3 | T64: 30000 | U64: 155.3 | V64: 18.5 | W64: 500000 | X64: 0
A65: VA North | B65: VA | C65: North | D65: 4501 | E65: L | F65: 38.02 | G65: 39.12 | H65: 78.3 | I65: 37.4 | J65: 3500000 | K65: 2000000 | N65: HI 2 | O65: HI | P65: 2 | Q65: 5102 | R65: T | S65: 156.4 | T65: 30000 | U65: 156.4 | V65: 20.2 | W65: 500000 | X65: 0
A66: VA South | B66: VA | C66: South | D66: 4502 | E66: L | F66: 36.46 | G66: 37.58 | H66: 78.3 | I66: 36.2 | J66: 3500000 | K66: 1000000 | N66: HI 3 | O66: HI | P66: 3 | Q66: 5103 | R66: T | S66: 158 | T66: 100000 | U66: 158 | V66: 21.1 | W66: 500000 | X66: 0
A67: WA North | B67: WA | C67: North | D67: 4601 | E67: L | F67: 47.3 | G67: 48.44 | H67: 120.5 | I67: 47 | J67: 500000 | K67: 0 | N67: HI 4 | O67: HI | P67: 4 | Q67: 5104 | R67: T | S67: 159.3 | T67: 100000 | U67: 159.3 | V67: 21.5 | W67: 500000 | X67: 0
A68: WA South | B68: WA | C68: South | D68: 4602 | E68: L | F68: 45.5 | G68: 47.2 | H68: 120.3 | I68: 45.2 | J68: 500000 | K68: 0 | N68: HI 5 | O68: HI | P68: 5 | Q68: 5105 | R68: T | S68: 160.1 | T68: 0 | U68: 160.1 | V68: 21.4 | W68: 500000 | X68: 0
A69: WI North | B69: WI | C69: North | D69: 4801 | E69: L | F69: 45.34 | G69: 46.46 | H69: 90 | I69: 45.1 | J69: 600000 | K69: 0 | N69: UTM 04 | O69: UTM | P69: 04 | Q69: 4N | R69: T | S69: 159 | T69: 2500 | U69: 159 | V69: 0 | W69: 500000 | X69: 0
A70: WI Central | B70: WI | C70: Central | D70: 4802 | E70: L | F70: 44.15 | G70: 45.3 | H70: 90 | I70: 43.5 | J70: 600000 | K70: 0 | N70: UTM 05 | O70: UTM | P70: 05 | Q70: 5N | R70: T | S70: 153 | T70: 2500 | U70: 153 | V70: 0 | W70: 500000 | X70: 0
A71: WI South | B71: WI | C71: South | D71: 4803 | E71: L | F71: 42.44 | G71: 44.04 | H71: 90 | I71: 42 | J71: 600000 | K71: 0 | N71: UTM 06 | O71: UTM | P71: 06 | Q71: 6N | R71: T | S71: 147 | T71: 2500 | U71: 147 | V71: 0 | W71: 500000 | X71: 0
A72: WV North | B72: WV | C72: North | D72: 4701 | E72: L | F72: 39 | G72: 40.15 | H72: 79.3 | I72: 38.3 | J72: 600000 | K72: 0 | N72: UTM 07 | O72: UTM | P72: 07 | Q72: 7N | R72: T | S72: 141 | T72: 2500 | U72: 141 | V72: 0 | W72: 500000 | X72: 0
A73: =CONCATENATE(B73," ",C73) -> WV South | B73: WV | C73: South | D73: 4702 | E73: L | F73: 37.29 | G73: 38.53 | H73: 81 | I73: 37 | J73: 600000 | K73: 0 | N73: UTM 08 | O73: UTM | P73: 08 | Q73: 8N | R73: T | S73: 135 | T73: 2500 | U73: 135 | V73: 0 | W73: 500000 | X73: 0
N74: UTM 09 | O74: UTM | P74: 09 | Q74: 9N | R74: T | S74: 129 | T74: 2500 | U74: 129 | V74: 0 | W74: 500000 | X74: 0
N75: UTM 10 | O75: UTM | P75: 10 | Q75: 10N | R75: T | S75: 123 | T75: 2500 | U75: 123 | V75: 0 | W75: 500000 | X75: 0
N76: UTM 11 | O76: UTM | P76: 11 | Q76: 11N | R76: T | S76: 117 | T76: 2500 | U76: 117 | V76: 0 | W76: 500000 | X76: 0
N77: UTM 12 | O77: UTM | P77: 12 | Q77: 12N | R77: T | S77: 111 | T77: 2500 | U77: 111 | V77: 0 | W77: 500000 | X77: 0
N78: UTM 13 | O78: UTM | P78: 13 | Q78: 13N | R78: T | S78: 105 | T78: 2500 | U78: 105 | V78: 0 | W78: 500000 | X78: 0
N79: =CONCATENATE(O79," ",P79) -> UTM 14 | O79: UTM | P79: 14 | Q79: 14N | R79: T | S79: 99 | T79: 2500 | U79: 99 | V79: 0 | W79: 500000 | X79: 0
N80: UTM 15 | O80: UTM | P80: 15 | Q80: 15N | R80: T | S80: 93 | T80: 2500 | U80: 93 | V80: 0 | W80: 500000 | X80: 0
N81: UTM 16 | O81: UTM | P81: 16 | Q81: 16N | R81: T | S81: 87 | T81: 2500 | U81: 87 | V81: 0 | W81: 500000 | X81: 0
N82: UTM 17 | O82: UTM | P82: 17 | Q82: 17N | R82: T | S82: 81 | T82: 2500 | U82: 81 | V82: 0 | W82: 500000 | X82: 0
N83: UTM 18 | O83: UTM | P83: 18 | Q83: 18N | R83: T | S83: 75 | T83: 2500 | U83: 75 | V83: 0 | W83: 500000 | X83: 0
N84: UTM 19 | O84: UTM | P84: 19 | Q84: 19N | R84: T | S84: 69 | T84: 2500 | U84: 69 | V84: 0 | W84: 500000 | X84: 0
N85: UTM 20 | O85: UTM | P85: 20 | Q85: 20N | R85: T | S85: 63 | T85: 2500 | U85: 63 | V85: 0 | W85: 500000 | X85: 0

Sheet Ellipsoids
A1: Ellipsoid and Units
A3: Ellipsoid Parameters
B4: Datum | C4: NAD 83 | D4: NAD 27
B5: Ellipsoid | C5: GRS80 | D5: Clarke 1866
B6: a | C6: 6378137 | D6: 6378206.4 | E6: semimajor axis, meters
B7: b | C7: =C6-C6*C8 -> 6356752.314 | D7: 6356358.8 | E7: semiminor axis; meters
B8: f | C8: =1/298.25722210088 -> 0.003352810681 | D8: =(D6-D7)/D6 -> 0.003425351679 | E8: flattening
B9: e2 | C9: =(C6^2-C7^2)/C6^2 -> 0.006694380023 | D9: =(D6^2-D7^2)/D6^2 -> 0.006838970323 | E9: first eccentricity squared
B10: e' 2 | C10: =(C6^2-C7^2)/C7^2 -> 0.006739496775 | D10: =(D6^2-D7^2)/D7^2 -> 0.00688606391 | E10: second eccentricity squared
A12: Unit Conversion Constants
B13: Unit | C13: Multiply units by:
B14: Meters | C14: 1 | D14: meters
B15: Int'l Ft | C15: =1000/(25.4*12) -> 3.280839895 | D15: int'l feet
B16: Survey Ft | C16: =39.37/12 -> 3.280833333 | D16: survey feet
B18: Note - Base units are meters.
C19: The above conversions are multipiers
